[Event "EYTCC U18 Open 2019"]
[Site "Pardubice"]
[Date "2019.07.12"]
[Round "2.7"]
[White "Tisaj, Domen"]
[Black "Tsaruk, Maksim"]
[Result "1/2-1/2"]
[ECO "E46"]
[WhiteElo "2232"]
[BlackElo "2230"]
[Annotator "NA"]
[PlyCount "188"]
[EventDate "2019.07.11"]
[EventType "swiss"]
[EventCountry "CZE"]
[SourceTitle "playchess.com"]
[Source "ChessBase"]
[SourceQuality "1"]
[WhiteTeam "Slovenia"]
[BlackTeam "Belarus"]
[WhiteTeamCountry "SLO"]
[BlackTeamCountry "BLR"]
[TimeControl "40/5400+30:1800+30"]

1. d4 {[%emt 0:00:00]} Nf6 {[%emt 0:00:00]} 2. c4 {[%emt 0:00:00]} e6 {[%emt 0:00:00]} 3. Nc3 {[%emt 0:00:00]} Bb4 {[%emt 0:00:00]} 4. e3 {[%emt 0:00:09]} O-O {[%emt 0:00:00]} 5. Nge2 {[%emt 0:00:07]} c6 {[%emt 0:00:06]} 6. a3 {[%emt 0:00:14]} Ba5 {[%emt 0:00:09]} 7. Ng3 {[%emt 0:01:36]} d5 {[%emt 0:01:46]} 8. Be2 {[%emt 0:00:57]} Nbd7 {[%emt 0:09:07]} 9. O-O {[%emt 0:00:43]} Bc7 {[%emt 0:03:26]} 10. b4 {[%emt 0:01:29]} dxc4 {[%emt 0:07:17]} 11. Bxc4 {[%emt 0:00:12]} e5 {[%emt 0:00:04]} 12. Be2 {[%emt 0:07:14]} exd4 {[%emt 0:09:50]} 13. Qxd4 {[%emt 0:01:40]} Ne5 {[%emt 0:06:07]} 14. Rd1 {[%emt 0:02:45]} Qxd4 {[%emt 0:09:59]} 15. Rxd4 {[%emt 0:04:07]} Bb6 {[%emt 0:00:17]} 16. Rd1 {[%emt 0:00:44]} Be6 {[%emt 0:00:05]} 17. Na4 {[%emt 0:04:14]} Bb3 {[%emt 0:16:00]} 18. Nxb6 {[%emt 0:00:09]} axb6 {[%emt 0:01:48]} 19. Rf1 {[%emt 0:06:18]} Rfe8 {[%emt 0:08:32]} 20. Bb2 {[%emt 0:02:10]} b5 {[%emt 0:04:34]} 21. Rfc1 {[%emt 0:03:22]} Rad8 {[%emt 0:05:49]} 22. Bd4 {[%emt 0:00:35]} Bd5 {[%emt 0:06:41]} 23. a4 {[%emt 0:00:49]} Nc4 {[%emt 0:01:10]} 24. axb5 {[%emt 0:01:01]} cxb5 {[%emt 0:00:05]} 25. Bxf6 {[%emt 0:01:14]} gxf6 {[%emt 0:00:03]} 26. Nf5 {[%emt 0:00:28]} Nd6 {[%emt 0:04:21]} 27. Nxd6 {[%emt 0:03:10]} Rxd6 {[%emt 0:00:03]} 28. Bxb5 {[%emt 0:00:44]} Re4 {[%emt 0:00:27]} 29. Rab1 {[%emt 0:24:14]} Rb6 {[%emt 0:00:06]} 30. Rc5 {[%emt 0:00:22]} Bc6 {[%emt 0:02:07]} 31. Bxc6 {[%emt 0:02:21]} bxc6 {[%emt 0:00:23]} 32. b5 {[%emt 0:00:22]} Rxb5 {[%emt 0:00:05]} 33. Rbxb5 {[%emt 0:00:11]} cxb5 {[%emt 0:00:05]} 34. Rxb5 {[%emt 0:00:06]} Kg7 {[%emt 0:00:04]} 35. h3 {[%emt 0:00:26]} Ra4 {[%emt 0:00:12]} 36. g4 {[%emt 0:00:20]} h6 {[%emt 0:00:37]} 37. Kg2 {[%emt 0:00:10]} Ra2 {[%emt 0:00:06]} 38. Kg3 {[%emt 0:00:33]} Kg6 {[%emt 0:00:08]} 39. f3 {[%emt 0:00:47]} Ra3 {[%emt 0:00:08]} 40. Kf4 {[%emt 0:00:16]} Ra4+ {[%emt 0:00:03]} 41. e4 {[%emt 0:30:26]} Ra1 {[%emt 0:30:34]} 42. Rb6 {[%emt 0:00:30]} Kg7 {[%emt 0:01:08]} 43. h4 {[%emt 0:00:06]} Ra3 {[%emt 0:00:27]} 44. Rb5 {[%emt 0:00:33]} Rc3 {[%emt 0:01:32]} 45. Rb2 {[%emt 0:00:55]} Ra3 {[%emt 0:00:19]} 46. Re2 {[%emt 0:00:06]} Kg6 {[%emt 0:00:49]} 47. Re3 {[%emt 0:00:06]} Ra1 {[%emt 0:00:43]} 48. Rd3 {[%emt 0:00:32]} Ra5 {[%emt 0:00:54]} 49. Rd5 {[%emt 0:00:52]} Ra3 {[%emt 0:00:06]} 50. g5 {[%emt 0:03:00]} fxg5+ {[%emt 0:01:34]} 51. hxg5 {[%emt 0:00:07]} hxg5+ {[%emt 0:00:05]} 52. Rxg5+ {[%emt 0:00:05]} Kf6 {[%emt 0:00:08]} 53. Rb5 {[%emt 0:00:07]} Ra6 {[%emt 0:00:00]} 54. Rd5 {[%emt 0:00:00]} Ke6 {[%emt 0:00:00]} 55. Kg5 {[%emt 0:00:00]} Ra1 {[%emt 0:00:00]} 56. Rb5 {[%emt 0:00:00]} f6+ {[%emt 0:00:00]} 57. Kg4 {[%emt 0:00:00]} Rg1+ {[%emt 0:00:00]} 58. Kf4 {[%emt 0:00:00]} Rg2 {[%emt 0:00:00]} 59. Rh5 {[%emt 0:00:00]} Rg1 {[%emt 0:00:00]} 60. Rh6 {[%emt 0:00:00]} Ra1 {[%emt 0:00:00]} 61. Rh8 {[%emt 0:00:00]} Rg1 {[%emt 0:00:00]} 62. Re8+ {[%emt 0:00:00]} Kf7 {[%emt 0:00:00]} 63. Rb8 {[%emt 0:00:00]} Ke6 {[%emt 0:00:00]} 64. Rb6+ {[%emt 0:00:00]} Kf7 {[%emt 0:00:00]} 65. Ke3 {[%emt 0:00:00]} Re1+ {[%emt 0:00:00]} 66. Kf2 {[%emt 0:00:00]} Ra1 {[%emt 0:00:00]} 67. Rd6 {[%emt 0:00:00]} Ke7 {[%emt 0:00:00]} 68. Rd3 {[%emt 0:00:00]} Ra4 {[%emt 0:03:48]} 69. Kg3 {[%emt 0:00:00]} Ke6 {[%emt 0:03:02]} 70. Rb3 {[%emt 0:00:00]} Ra1 {[%emt 0:01:58]} 71. Rb6+ {[%emt 0:00:00]} Kf7 {[%emt 0:00:03]} 72. f4 {[%emt 0:00:00]} Rg1+ {[%emt 0:02:11]} 73. Kf3 {[%emt 0:00:00]} Re1 {[%emt 0:01:14]} 74. Rb7+ {[%emt 0:00:00]} Kf8 {[%emt 0:00:07]} 75. Rc7 {[%emt 0:00:00]} Kg8 {[%emt 0:00:17]} 76. Kg4 {[%emt 0:00:00]} Rxe4 {[%emt 0:00:40]} 77. Kf5 {[%emt 0:00:00]} Re1 {[%emt 0:01:33]} 78. Kg6 {[%emt 0:00:00]} Rg1+ {[%emt 0:00:14]} 79. Kxf6 {[%emt 0:00:00]} Rf1 {[%emt 0:00:27]} 80. f5 {[%emt 0:00:00]} Ra1 {[%emt 0:00:53]} 81. Rc8+ {[%emt 0:00:00]} Kh7 {[%emt 0:00:04]} 82. Re8 {[%emt 0:00:00]} Ra6+ {[%emt 0:02:55]} 83. Re6 {[%emt 0:00:00]} Ra5 {[%emt 0:00:10]} 84. Re5 {[%emt 0:00:00]} Ra6+ {[%emt 0:00:18]} 85. Kf7 {[%emt 0:00:00]} Ra7+ {[%emt 0:00:39]} 86. Re7 {[%emt 0:00:00]} Ra8 {[%emt 0:00:24]} 87. f6 {[%emt 0:00:00]} Rb8 {[%emt 0:00:03]} 88. Rd7 {[%emt 0:00:00]} Ra8 {[%emt 0:00:54]} 89. Ke6+ {[%emt 0:00:00]} Kg6 {[%emt 0:00:58]} 90. Rg7+ {[%emt 0:00:00]} Kh6 {[%emt 0:00:05]} 91. Rc7 {[%emt 0:05:33]} Kg6 {[%emt 0:00:07]} 92. Ke7 {[%emt 0:01:09]} Rb8 {[%emt 0:00:34]} 93. Ra7 {[%emt 0:00:13]} Rc8 {[%emt 0:01:18]} 94. f7 {[%emt 0:00:19]} Kg7 {[%emt 0:00:02]} 1/2-1/2

[Event "EYTCC U18 Open 2019"]
[Site "Pardubice"]
[Date "2019.07.12"]
[Round "2.8"]
[White "Runets, Ivan"]
[Black "Marn, Jan"]
[Result "1-0"]
[ECO "C72"]
[WhiteElo "2239"]
[BlackElo "2215"]
[Annotator "NA"]
[PlyCount "115"]
[EventDate "2019.07.11"]
[EventType "swiss"]
[EventCountry "CZE"]
[SourceTitle "playchess.com"]
[Source "ChessBase"]
[SourceQuality "1"]
[WhiteTeam "Belarus"]
[BlackTeam "Slovenia"]
[WhiteTeamCountry "BLR"]
[BlackTeamCountry "SLO"]
[TimeControl "40/5400+30:1800+30"]

1. e4 {[%emt 0:00:00]} e5 {[%emt 0:00:38]} 2. Nf3 {[%emt 0:00:00]} Nc6 {[%emt 0:00:05]} 3. Bb5 {[%emt 0:00:01]} a6 {[%emt 0:02:14]} 4. Ba4 {[%emt 0:00:05]} d6 {[%emt 0:00:08]} 5. O-O {[%emt 0:02:49]} Bd7 {[%emt 0:01:43]} 6. d4 {[%emt 0:08:19]} b5 {[%emt 0:00:31]} 7. Bb3 {[%emt 0:00:06]} Nxd4 {[%emt 0:01:03]} 8. Nxd4 {[%emt 0:00:17]} exd4 {[%emt 0:00:07]} 9. c3 {[%emt 0:14:21]} dxc3 {[%emt 0:00:40]} 10. Nxc3 {[%emt 0:00:49]} Nf6 {[%emt 0:02:41]} 11. Bg5 {[%emt 0:18:04]} Be7 {[%emt 0:01:00]} 12. Re1 {[%emt 0:08:13]} h6 {[%emt 0:28:37]} 13. Bh4 {[%emt 0:06:30]} b4 {[%emt 0:02:18]} 14. Nd5 {[%emt 0:06:43]} Nxd5 {[%emt 0:01:34]} 15. exd5 {[%emt 0:00:16]} g5 {[%emt 0:00:20]} 16. Bg3 {[%emt 0:07:43]} Kf8 {[%emt 0:03:43]} 17. Ba4 {[%emt 0:07:18]} Bf6 {[%emt 0:02:18]} 18. Bxd7 {[%emt 0:02:23]} Qxd7 {[%emt 0:00:08]} 19. Qb3 {[%emt 0:01:05]} h5 {[%emt 0:01:23]} 20. f3 {[%emt 0:03:43]} h4 {[%emt 0:01:00]} 21. Bf2 {[%emt 0:00:03]} g4 {[%emt 0:10:48]} 22. Re4 {[%emt 0:02:52]} g3 {[%emt 0:04:12]} 23. hxg3 {[%emt 0:01:34]} hxg3 {[%emt 0:00:06]} 24. Bxg3 {[%emt 0:00:10]} Rg8 {[%emt 0:02:23]} 25. Kf2 {[%emt 0:01:18]} Qb5 {[%emt 0:06:47]} 26. Bf4 {[%emt 0:01:22]} a5 {[%emt 0:02:43]} 27. a4 {[%emt 0:00:13]} Qd7 {[%emt 0:01:19]} 28. Rae1 {[%emt 0:03:12]} Rg6 {[%emt 0:02:44]} 29. Rh1 {[%emt 0:02:01]} Re8 {[%emt 0:03:07]} 30. Rhe1 {[%emt 0:00:31]} Rxe4 {[%emt 0:04:23]} 31. Rxe4 {[%emt 0:00:07]} Qf5 {[%emt 0:03:43]} 32. g4 {[%emt 0:03:05]} Bh4+ {[%emt 0:01:29]} 33. Ke2 {[%emt 0:00:06]} Qc8 {[%emt 0:00:16]} 34. Qc4 {[%emt 0:00:08]} Qb7 {[%emt 0:05:50]} 35. b3 {[%emt 0:01:13]} Bg5 {[%emt 0:00:11]} 36. Bg3 {[%emt 0:00:33]} Rh6 {[%emt 0:01:06]} 37. f4 {[%emt 0:00:44]} Rh3 {[%emt 0:01:37]} 38. Qd4 {[%emt 0:00:30]} Bd8 {[%emt 0:01:53]} 39. Kf3 {[%emt 0:00:05]} f6 {[%emt 0:02:05]} 40. Kg2 {[%emt 0:00:41]} Rh7 {[%emt 0:00:22]} 41. Re6 {[%emt 0:06:16]} Rf7 {[%emt 0:09:20]} 42. g5 {[%emt 0:04:49]} c5 {[%emt 0:00:11]} 43. Qe4 {[%emt 0:01:08]} Be7 {[%emt 0:02:38]} 44. g6 {[%emt 0:03:47]} f5 {[%emt 0:00:12]} 45. Qd3 {[%emt 0:00:02]} Rf6 {[%emt 0:00:40]} 46. Rxf6+ {[%emt 0:02:56]} Bxf6 {[%emt 0:00:06]} 47. Qxf5 {[%emt 0:00:10]} Qe7 {[%emt 0:01:10]} 48. Kf3 {[%emt 0:00:44]} Kg8 {[%emt 0:01:31]} 49. Qe4 {[%emt 0:05:57]} Qd7 {[%emt 0:03:51]} 50. Ke3 {[%emt 0:05:36]} Kg7 {[%emt 0:03:04]} 51. f5 {[%emt 0:00:37]} Qa7 {[%emt 0:01:51]} 52. Kf3 {[%emt 0:00:52]} Qa6 {[%emt 0:00:19]} 53. Qe2 {[%emt 0:00:54]} Qc8 {[%emt 0:02:08]} 54. Kg4 {[%emt 0:01:19]} c4 {[%emt 0:02:34]} 55. bxc4 {[%emt 0:00:06]} b3 {[%emt 0:00:09]} 56. Bxd6 {[%emt 0:00:33]} b2 {[%emt 0:00:04]} 57. Qe4 {[%emt 0:00:58]} Qb7 {[%emt 0:02:36]} 58. Qe8 {[%emt 0:00:17]} 1-0

[Event "EYTCC U18 Open 2019"]
[Site "Pardubice"]
[Date "2019.07.12"]
[Round "2.9"]
[White "Willow, Jonah B"]
[Black "Miesbauer, Jan"]
[Result "0-1"]
[ECO "C03"]
[WhiteElo "2343"]
[BlackElo "2409"]
[Annotator "NA"]
[PlyCount "140"]
[EventDate "2019.07.11"]
[EventType "swiss"]
[EventCountry "CZE"]
[SourceTitle "playchess.com"]
[Source "ChessBase"]
[SourceQuality "1"]
[WhiteTeam "England"]
[BlackTeam "Czech Republic"]
[WhiteTeamCountry "ENG"]
[BlackTeamCountry "CZE"]
[TimeControl "40/5400+30:1800+30"]

1. e4 {[%emt 0:00:00]} e6 {[%emt 0:00:00]} 2. d4 {[%emt 0:00:18]} d5 {[%emt 0:00:00]} 3. Nd2 {[%emt 0:00:29]} Be7 {[%emt 0:00:09]} 4. e5 {[%emt 0:03:50]} c5 {[%emt 0:00:31]} 5. c3 {[%emt 0:00:12]} Nc6 {[%emt 0:00:36]} 6. Bd3 {[%emt 0:00:29]} Qb6 {[%emt 0:02:44]} 7. Ne2 {[%emt 0:08:29]} Bd7 {[%emt 0:00:27]} 8. O-O {[%emt 0:04:07]} cxd4 {[%emt 0:02:24]} 9. cxd4 {[%emt 0:00:23]} Nb4 {[%emt 0:00:42]} 10. Bb1 {[%emt 0:04:50]} Bb5 {[%emt 0:00:46]} 11. Nb3 {[%emt 0:03:28]} Qa6 {[%emt 0:05:04]} 12. Re1 {[%emt 0:00:43]} Nd3 {[%emt 0:02:04]} 13. Bxd3 {[%emt 0:01:48]} Bxd3 {[%emt 0:00:06]} 14. Nf4 {[%emt 0:03:51]} Bg6 {[%emt 0:05:08]} 15. Bd2 {[%emt 0:10:46]} Nh6 {[%emt 0:05:53]} 16. h4 {[%emt 0:14:09]} Bxh4 {[%emt 0:13:26]} 17. Nc5 {[%emt 0:13:38]} Qc4 {[%emt 0:01:52]} 18. Nfxe6 {[%emt 0:17:45]} fxe6 {[%emt 0:07:24]} 19. Nxe6 {[%emt 0:00:08]} Kf7 {[%emt 0:14:57]} 20. Bxh6 {[%emt 0:00:06]} gxh6 {[%emt 0:09:05]} 21. Rc1 {[%emt 0:04:02]} Qd3 {[%emt 0:03:15]} 22. Qg4 {[%emt 0:02:56]} Qf5 {[%emt 0:00:58]} 23. Qxh4 {[%emt 0:00:04]} Kxe6 {[%emt 0:01:20]} 24. Rc7 {[%emt 0:00:37]} Rhe8 {[%emt 0:05:43]} 25. Rec1 {[%emt 0:00:26]} Qg5 {[%emt 0:06:03]} 26. Qh3+ {[%emt 0:00:22]} Bf5 {[%emt 0:00:10]} 27. Qa3 {[%emt 0:00:52]} Rad8 {[%emt 0:02:29]} 28. Qxa7 {[%emt 0:01:55]} Re7 {[%emt 0:02:03]} 29. Rxe7+ {[%emt 0:01:46]} Qxe7 {[%emt 0:00:51]} 30. Qb6+ {[%emt 0:00:22]} Kf7 {[%emt 0:00:24]} 31. Qxh6 {[%emt 0:00:50]} Kg8 {[%emt 0:01:15]} 32. Rc3 {[%emt 0:01:12]} Bg6 {[%emt 0:01:09]} 33. Rg3 {[%emt 0:00:46]} Qg7 {[%emt 0:00:46]} 34. Qg5 {[%emt 0:00:28]} Rf8 {[%emt 0:00:13]} 35. Qg4 {[%emt 0:00:46]} Kh8 {[%emt 0:01:00]} 36. Qe2 {[%emt 0:00:32]} Qh6 {[%emt 0:03:15]} 37. e6 {[%emt 0:00:22]} Qf4 {[%emt 0:01:40]} 38. e7 {[%emt 0:00:40]} Re8 {[%emt 0:00:47]} 39. Rf3 {[%emt 0:00:25]} Qxd4 {[%emt 0:02:12]} 40. Rf8+ {[%emt 0:00:36]} Kg7 {[%emt 0:00:05]} 41. Rf3 {[%emt 0:06:15]} Qe4 {[%emt 0:02:32]} 42. Re3 {[%emt 0:00:48]} Qh4 {[%emt 0:01:44]} 43. Re6 {[%emt 0:02:24]} Qf4 {[%emt 0:02:36]} 44. Qb5 {[%emt 0:01:51]} Bf7 {[%emt 0:04:45]} 45. Re3 {[%emt 0:01:50]} Qc7 {[%emt 0:05:21]} 46. Qb4 {[%emt 0:02:39]} Qd7 {[%emt 0:01:53]} 47. Qd4+ {[%emt 0:03:10]} Kg8 {[%emt 0:00:11]} 48. Qf6 {[%emt 0:00:54]} Bg6 {[%emt 0:00:43]} 49. f4 {[%emt 0:03:13]} d4 {[%emt 0:05:14]} 50. Rg3 {[%emt 0:05:18]} Qxe7 {[%emt 0:00:06]} 51. Qxd4 {[%emt 0:00:29]} Rd8 {[%emt 0:00:42]} 52. Qa4 {[%emt 0:02:23]} Kh8 {[%emt 0:04:25]} 53. Qb3 {[%emt 0:02:11]} Rf8 {[%emt 0:00:16]} 54. Rf3 {[%emt 0:02:14]} Be4 {[%emt 0:01:34]} 55. Rf2 {[%emt 0:00:49]} Bc6 {[%emt 0:00:37]} 56. Qc3+ {[%emt 0:01:07]} Qf6 {[%emt 0:00:12]} 57. Qxf6+ {[%emt 0:00:42]} Rxf6 {[%emt 0:00:05]} 58. g4 {[%emt 0:00:35]} Rd6 {[%emt 0:02:14]} 59. Kh2 {[%emt 0:00:31]} Rd3 {[%emt 0:00:19]} 60. f5 {[%emt 0:00:35]} Kg7 {[%emt 0:01:16]} 61. g5 {[%emt 0:00:24]} Re3 {[%emt 0:01:29]} 62. b4 {[%emt 0:00:36]} Re4 {[%emt 0:00:51]} 63. Rb2 {[%emt 0:00:18]} Rg4 {[%emt 0:00:27]} 64. g6 {[%emt 0:00:14]} h5 {[%emt 0:00:19]} 65. b5 {[%emt 0:00:35]} Be4 {[%emt 0:00:06]} 66. a4 {[%emt 0:00:53]} b6 {[%emt 0:01:32]} 67. Re2 {[%emt 0:00:32]} Bxf5 {[%emt 0:00:25]} 68. Re7+ {[%emt 0:00:23]} Kxg6 {[%emt 0:00:05]} 69. Rb7 {[%emt 0:00:36]} Rxa4 {[%emt 0:00:06]} 70. Rxb6+ {[%emt 0:00:03]} Kg5 {[%emt 0:00:05]} 0-1

[Event "EYTCC U18 Open 2019"]
[Site "Pardubice"]
[Date "2019.07.12"]
[Round "2.10"]
[White "Zeman, Matyas"]
[Black "Derakhshani, Borna"]
[Result "0-1"]
[ECO "B13"]
[WhiteElo "2275"]
[BlackElo "2300"]
[Annotator "NA"]
[PlyCount "98"]
[EventDate "2019.07.11"]
[EventType "swiss"]
[EventCountry "CZE"]
[SourceTitle "playchess.com"]
[Source "ChessBase"]
[SourceQuality "1"]
[WhiteTeam "Czech Republic"]
[BlackTeam "England"]
[WhiteTeamCountry "CZE"]
[BlackTeamCountry "ENG"]
[TimeControl "40/5400+30:1800+30"]

1. e4 {[%emt 0:00:00]} c6 {[%emt 0:00:00]} 2. d4 {[%emt 0:00:00]} d5 {[%emt 0:00:00]} 3. exd5 {[%emt 0:00:05]} cxd5 {[%emt 0:00:00]} 4. Bd3 {[%emt 0:00:07]} Nc6 {[%emt 0:00:00]} 5. c3 {[%emt 0:00:04]} Qc7 {[%emt 0:00:10]} 6. Ne2 {[%emt 0:00:28]} Bg4 {[%emt 0:00:06]} 7. O-O {[%emt 0:00:30]} e6 {[%emt 0:00:21]} 8. Qe1 {[%emt 0:00:14]} Bxe2 {[%emt 0:00:05]} 9. Qxe2 {[%emt 0:00:05]} Bd6 {[%emt 0:00:06]} 10. g3 {[%emt 0:00:10]} Nf6 {[%emt 0:00:17]} 11. Nd2 {[%emt 0:01:14]} O-O {[%emt 0:00:12]} 12. f4 {[%emt 0:00:52]} a6 {[%emt 0:00:33]} 13. Nf3 {[%emt 0:17:16]} b5 {[%emt 0:00:17]} 14. Bd2 {[%emt 0:04:57]} b4 {[%emt 0:06:34]} 15. Ne5 {[%emt 0:12:58]} bxc3 {[%emt 0:00:24]} 16. bxc3 {[%emt 0:00:24]} Ne7 {[%emt 0:03:28]} 17. g4 {[%emt 0:20:25]} Rab8 {[%emt 0:03:26]} 18. g5 {[%emt 0:02:41]} Ne4 {[%emt 0:00:13]} 19. Bxe4 {[%emt 0:00:51]} dxe4 {[%emt 0:00:03]} 20. Qxe4 {[%emt 0:02:40]} Bxe5 {[%emt 0:01:37]} 21. Qxe5 {[%emt 0:02:05]} Qc4 {[%emt 0:00:11]} 22. Rf2 {[%emt 0:03:36]} Rb2 {[%emt 0:03:44]} 23. Qc5 {[%emt 0:02:34]} Qd3 {[%emt 0:01:38]} 24. Be1 {[%emt 0:10:01]} Rxf2 {[%emt 0:00:21]} 25. Bxf2 {[%emt 0:00:06]} Nd5 {[%emt 0:00:52]} 26. Re1 {[%emt 0:04:56]} Nxf4 {[%emt 0:02:14]} 27. Bg3 {[%emt 0:07:41]} Qd2 {[%emt 0:00:47]} 28. Qc6 {[%emt 0:00:22]} Ne2+ {[%emt 0:03:12]} 29. Kf1 {[%emt 0:00:05]} Nxg3+ {[%emt 0:23:35]} 30. hxg3 {[%emt 0:00:07]} Qxg5 {[%emt 0:00:14]} 31. Qf3 {[%emt 0:02:34]} Qb5+ {[%emt 0:00:47]} 32. Kf2 {[%emt 0:00:13]} Rc8 {[%emt 0:00:21]} 33. Re3 {[%emt 0:00:12]} h5 {[%emt 0:00:59]} 34. Qe2 {[%emt 0:00:45]} g6 {[%emt 0:01:26]} 35. Qd2 {[%emt 0:03:20]} Qd5 {[%emt 0:00:45]} 36. Rf3 {[%emt 0:01:23]} Rb8 {[%emt 0:00:23]} 37. Qc2 {[%emt 0:01:11]} Qc4 {[%emt 0:00:16]} 38. Re3 {[%emt 0:00:48]} Rb5 {[%emt 0:01:53]} 39. Re2 {[%emt 0:00:36]} Rf5+ {[%emt 0:00:14]} 40. Kg2 {[%emt 0:00:14]} a5 {[%emt 0:00:37]} 41. Rf2 {[%emt 0:30:59]} Qc6+ {[%emt 0:35:01]} 42. Kg1 {[%emt 0:00:00]} Rg5 {[%emt 0:00:00]} 43. Rg2 {[%emt 0:00:00]} Qf3 {[%emt 0:00:00]} 44. Qb2 {[%emt 0:00:00]} Rf5 {[%emt 0:00:00]} 45. Qd2 {[%emt 0:00:00]} Qf1+ {[%emt 0:00:00]} 46. Kh2 {[%emt 0:00:00]} a4 {[%emt 0:00:00]} 47. Qc2 {[%emt 0:00:00]} h4 {[%emt 0:00:00]} 48. gxh4 {[%emt 0:00:00]} Rf4 {[%emt 0:00:00]} 49. Rxg6+ {[%emt 0:00:00]} Kf8 {[%emt 0:00:00]} 0-1

[Event "EYTCC U18 Open 2019"]
[Site "Pardubice"]
[Date "2019.07.12"]
[Round "2.11"]
[White "Grieve, Harry"]
[Black "Sramek, Vojtech"]
[Result "1/2-1/2"]
[ECO "B76"]
[WhiteElo "2235"]
[BlackElo "2233"]
[Annotator "NA"]
[PlyCount "98"]
[EventDate "2019.07.11"]
[EventType "swiss"]
[EventCountry "CZE"]
[SourceTitle "playchess.com"]
[Source "ChessBase"]
[SourceQuality "1"]
[WhiteTeam "England"]
[BlackTeam "Czech Republic"]
[WhiteTeamCountry "ENG"]
[BlackTeamCountry "CZE"]
[TimeControl "40/5400+30:1800+30"]

1. e4 {[%emt 0:00:00]} c5 {[%emt 0:00:00]} 2. Nf3 {[%emt 0:00:00]} d6 {[%emt 0:00:00]} 3. d4 {[%emt 0:00:01]} cxd4 {[%emt 0:00:00]} 4. Nxd4 {[%emt 0:00:06]} Nf6 {[%emt 0:00:00]} 5. Nc3 {[%emt 0:00:06]} g6 {[%emt 0:00:00]} 6. Be3 {[%emt 0:00:11]} Bg7 {[%emt 0:00:05]} 7. f3 {[%emt 0:00:21]} O-O {[%emt 0:00:07]} 8. Qd2 {[%emt 0:00:06]} Nc6 {[%emt 0:00:04]} 9. O-O-O {[%emt 0:00:19]} d5 {[%emt 0:00:34]} 10. Qe1 {[%emt 0:00:22]} e5 {[%emt 0:01:52]} 11. Nxc6 {[%emt 0:00:11]} bxc6 {[%emt 0:00:06]} 12. exd5 {[%emt 0:00:04]} Nxd5 {[%emt 0:01:26]} 13. Bc4 {[%emt 0:00:07]} Be6 {[%emt 0:01:25]} 14. Ne4 {[%emt 0:00:06]} Qc7 {[%emt 0:01:43]} 15. Bc5 {[%emt 0:00:07]} Rfd8 {[%emt 0:01:16]} 16. Qh4 {[%emt 0:00:07]} h6 {[%emt 0:18:02]} 17. g4 {[%emt 0:00:06]} Rd7 {[%emt 0:09:32]} 18. g5 {[%emt 0:00:05]} h5 {[%emt 0:00:50]} 19. Qf2 {[%emt 0:00:02]} Rad8 {[%emt 0:04:53]} 20. h4 {[%emt 0:00:02]} Nf4 {[%emt 0:03:46]} 21. Rxd7 {[%emt 0:05:59]} Rxd7 {[%emt 0:01:33]} 22. Bxe6 {[%emt 0:01:27]} Nxe6 {[%emt 0:00:22]} 23. Be3 {[%emt 0:01:15]} Qa5 {[%emt 0:04:34]} 24. Kb1 {[%emt 0:02:03]} Rd8 {[%emt 0:12:39]} 25. Rc1 {[%emt 0:11:32]} Bf8 {[%emt 0:10:59]} 26. Qf1 {[%emt 0:07:04]} Rb8 {[%emt 0:06:25]} 27. c3 {[%emt 0:04:43]} a6 {[%emt 0:03:02]} 28. Rd1 {[%emt 0:07:12]} Kg7 {[%emt 0:02:40]} 29. Qc4 {[%emt 0:10:02]} Qb5 {[%emt 0:01:51]} 30. Qxb5 {[%emt 0:00:02]} axb5 {[%emt 0:03:15]} 31. Rd7 {[%emt 0:05:51]} Rd8 {[%emt 0:02:07]} 32. Rxd8 {[%emt 0:00:22]} Nxd8 {[%emt 0:00:04]} 33. Ba7 {[%emt 0:00:33]} Be7 {[%emt 0:02:56]} 34. b3 {[%emt 0:11:17]} f6 {[%emt 0:02:12]} 35. a4 {[%emt 0:02:08]} bxa4 {[%emt 0:04:26]} 36. bxa4 {[%emt 0:00:01]} fxg5 {[%emt 0:00:24]} 37. hxg5 {[%emt 0:00:07]} Ne6 {[%emt 0:01:33]} 38. Bb8 {[%emt 0:02:29]} Nxg5 {[%emt 0:01:12]} 39. Bxe5+ {[%emt 0:30:55]} Kf7 {[%emt 0:00:04]} 40. Nxg5+ {[%emt 0:01:46]} Bxg5 {[%emt 0:00:04]} 41. a5 {[%emt 0:01:23]} h4 {[%emt 0:07:00]} 42. Kc2 {[%emt 0:03:50]} Be3 {[%emt 0:14:12]} 43. Kd3 {[%emt 0:02:29]} Ba7 {[%emt 0:00:25]} 44. Ke4 {[%emt 0:05:29]} Ke6 {[%emt 0:01:30]} 45. Bh2 {[%emt 0:01:50]} Kd7 {[%emt 0:09:49]} 46. c4 {[%emt 0:02:19]} Kc8 {[%emt 0:00:53]} 47. a6 {[%emt 0:07:23]} g5 {[%emt 0:00:28]} 48. Kf5 {[%emt 0:02:22]} Be3 {[%emt 0:00:45]} 49. Kg4 {[%emt 0:02:36]} Bd2 {[%emt 0:00:15]} 1/2-1/2